[Event "Gibraltar Masters 18th"]
[Site "Gibraltar"]
[Date "2020.01.30"]
[Round "10.37"]
[White "Ali Marandi, Cemil Can"]
[Black "Ladron De Guevara Pinto, Paolo"]
[Result "1/2-1/2"]
[ECO "D55"]
[WhiteElo "2546"]
[BlackElo "2445"]
[PlyCount "111"]
[EventDate "2020.01.21"]
[EventType "swiss"]
[EventRounds "10"]
[EventCountry "GGB"]
[SourceTitle "BritBase"]
[Source "John Saunders"]
[SourceDate "2021.06.05"]
[SourceVersion "1"]
[SourceVersionDate "2021.06.05"]
[SourceQuality "1"]
[TimeControl "40/100:0"]
[WhiteClock "0:48:05"]
[BlackClock "0:03:05"]

1. d4 {[%emt 0:00:00]} d5 {[%emt 0:01:51]} 2. c4 {[%emt 0:00:00]} e6 {[%emt 0:
00:00]} 3. Nf3 {[%emt 0:00:00]} Nf6 {[%emt 0:00:00]} 4. Bg5 {[%emt 0:00:00]}
Be7 {[%emt 0:00:00]} 5. Qc2 {[%emt 0:00:00]} O-O {[%emt 0:00:00]} 6. Nc3 {
[%emt 0:00:00]} Nbd7 {[%emt 0:00:00]} 7. e3 {[%emt 0:00:00]} b6 {[%emt 0:00:00]
} 8. cxd5 {[%emt 0:00:00]} exd5 {[%emt 0:00:00]} 9. Bd3 {[%emt 0:00:00]} Bb7 {
[%emt 0:00:00]} 10. O-O {[%emt 0:00:00]} Re8 {[%emt 0:00:00]} 11. Bxf6 {
[%emt 0:00:00]} Nxf6 {[%emt 0:00:00]} 12. Ne5 {[%emt 0:00:00]} a6 {[%emt 0:00:
00]} 13. Rad1 {[%emt 0:00:00]} c5 {[%emt 0:00:00]} 14. Qe2 {[%emt 0:00:00]} c4
{[%emt 0:00:00]} 15. Bb1 {[%emt 0:00:00]} b5 {[%emt 0:00:00]} 16. a3 {[%emt 0:
00:00]} Bd6 {[%emt 0:00:00]} 17. f4 {[%emt 0:00:00]} Ne4 {[%emt 0:00:00]} 18.
Qf3 {[%emt 0:00:00]} f6 {[%emt 0:00:00]} 19. Nxe4 {[%emt 0:00:00]} dxe4 {
[%emt 0:00:00]} 20. Bxe4 {[%emt 0:00:00]} Bxe4 {[%emt 0:00:00]} 21. Qxe4 {
[%emt 0:00:00]} Bf8 {[%emt 0:00:00]} 22. Qb7 {[%emt 0:00:00]} fxe5 {[%emt 0:00:
00]} 23. fxe5 {[%emt 0:00:00]} Qe7 {[%emt 0:00:00]} 24. Qd5+ {[%emt 0:00:00]}
Qe6 {[%emt 0:00:00]} 25. Qb7 {[%emt 0:00:00]} Rab8 {[%emt 0:00:00]} 26. Qe4 {
[%emt 0:00:00]} a5 {[%emt 0:00:00]} 27. Rf2 {[%emt 0:00:00]} b4 {[%emt 0:00:00]
} 28. axb4 {[%emt 0:00:00]} axb4 {[%emt 0:00:00]} 29. Rdf1 {[%emt 0:00:00]}
Rbd8 {[%emt 0:00:00]} 30. Qc2 {[%emt 0:00:00]} Be7 {[%emt 0:00:00]} 31. Qe4 {
[%emt 0:00:00]} Rf8 {[%emt 0:00:00]} 32. Rxf8+ {[%emt 0:00:00]} Bxf8 {[%emt 0:
00:00]} 33. Rd1 {[%emt 0:00:00]} c3 {[%emt 0:00:00]} 34. bxc3 {[%emt 0:00:00]}
bxc3 {[%emt 0:00:00]} 35. Rc1 {[%emt 0:00:00]} Qc4 {[%emt 0:00:00]} 36. e6 {
[%emt 0:00:00]} Re8 {[%emt 0:00:00]} 37. Qf5 {[%emt 0:00:00]} Rxe6 {[%emt 0:00:
00]} 38. Rxc3 {[%emt 0:00:00]} Qa2 {[%emt 0:00:00]} 39. Qf1 {[%emt 0:00:00]}
Rf6 {[%emt 0:00:00]} 40. Qc4+ {[%emt 0:00:00]} Qxc4 {[%emt 0:00:00]} 41. Rxc4 {
[%emt 0:00:00]} Kf7 {[%emt 0:00:00]} 42. g3 {[%emt 0:00:00]} Be7 {[%emt 0:00:
00]} 43. Kg2 {[%emt 0:00:00]} h5 {[%emt 0:00:00]} 44. e4 {[%emt 0:00:00]} Rb6 {
[%emt 0:00:00]} 45. h4 {[%emt 0:00:00]} Rb3 {[%emt 0:00:00]} 46. Kf2 {[%emt 0:
00:00]} Bd8 {[%emt 0:00:00]} 47. Rc5 {[%emt 0:00:00]} g6 {[%emt 0:00:00]} 48.
Kg2 {[%emt 0:00:00]} Bb6 {[%emt 0:00:00]} 49. Rc4 {[%emt 0:00:00]} Rd3 {
[%emt 0:00:00]} 50. d5 {[%emt 0:00:00]} Rd2+ {[%emt 0:00:00]} 51. Kh3 {[%emt 0:
00:00]} Bd8 {[%emt 0:00:00]} 52. Rc8 {[%emt 0:00:00]} Be7 {[%emt 0:00:00]} 53.
Rc7 {[%emt 0:00:00]} Ke8 {[%emt 0:00:00]} 54. Rc6 {[%emt 0:00:00]} Rd4 {
[%emt 0:00:00]} 55. Rxg6 {[%emt 0:00:00]} Rxe4 {[%emt 0:00:00]} 56. Re6 {
[%emt 0:00:00]} 1/2-1/2

[Event "Gibraltar Masters 18th"]
[Site "Gibraltar"]
[Date "2020.01.30"]
[Round "10.38"]
[White "Womacka, Mathias"]
[Black "Kaidanov, Gregory"]
[Result "1/2-1/2"]
[ECO "C55"]
[WhiteElo "2439"]
[BlackElo "2546"]
[PlyCount "61"]
[EventDate "2020.01.21"]
[EventType "swiss"]
[EventRounds "10"]
[EventCountry "GGB"]
[SourceTitle "BritBase"]
[Source "John Saunders"]
[SourceDate "2021.06.05"]
[SourceVersion "1"]
[SourceVersionDate "2021.06.05"]
[SourceQuality "1"]
[TimeControl "40/100:0"]
[WhiteClock "0:08:07"]
[BlackClock "0:06:10"]

1. e4 {[%emt 0:00:00]} e5 {[%emt 0:00:00]} 2. Nf3 {[%emt 0:00:00]} Nc6 {
[%emt 0:00:00]} 3. Bc4 {[%emt 0:00:00]} Nf6 {[%emt 0:00:00]} 4. d3 {[%emt 0:00:
00]} Be7 {[%emt 0:00:00]} 5. O-O {[%emt 0:00:00]} O-O {[%emt 0:00:00]} 6. Re1 {
[%emt 0:00:00]} d6 {[%emt 0:00:00]} 7. a4 {[%emt 0:00:00]} Be6 {[%emt 0:00:00]}
8. Bxe6 {[%emt 0:00:00]} fxe6 {[%emt 0:00:00]} 9. c3 {[%emt 0:00:00]} a5 {
[%emt 0:00:00]} 10. Nbd2 {[%emt 0:00:00]} d5 {[%emt 0:00:00]} 11. exd5 {
[%emt 0:00:00]} Qxd5 {[%emt 0:00:00]} 12. Qe2 {[%emt 0:00:00]} Rad8 {[%emt 0:
00:00]} 13. Nc4 {[%emt 0:00:00]} Qxd3 {[%emt 0:00:00]} 14. Qxd3 {[%emt 0:00:00]
} Rxd3 {[%emt 0:00:00]} 15. Nfxe5 {[%emt 0:00:00]} Nxe5 {[%emt 0:00:00]} 16.
Nxe5 {[%emt 0:00:00]} Rd5 {[%emt 0:00:00]} 17. Nf3 {[%emt 0:00:00]} Bd6 {
[%emt 0:00:00]} 18. h3 {[%emt 0:00:00]} Nd7 {[%emt 0:00:00]} 19. Be3 {[%emt 0:
00:00]} Bc5 {[%emt 0:00:00]} 20. Nd4 {[%emt 0:00:00]} Bxd4 {[%emt 0:00:00]} 21.
Bxd4 {[%emt 0:00:00]} c5 {[%emt 0:00:00]} 22. Be3 {[%emt 0:00:00]} c4 {[%emt 0:
00:00]} 23. Rad1 {[%emt 0:00:00]} Kf7 {[%emt 0:00:00]} 24. Rd4 {[%emt 0:00:00]}
Rc8 {[%emt 0:00:00]} 25. Red1 {[%emt 0:00:00]} Nf6 {[%emt 0:00:00]} 26. g4 {
[%emt 0:00:00]} Rcd8 {[%emt 0:00:00]} 27. Re1 {[%emt 0:00:00]} Rxd4 {[%emt 0:
00:00]} 28. Bxd4 {[%emt 0:00:00]} Nd5 {[%emt 0:00:00]} 29. Re5 {[%emt 0:00:00]}
g6 {[%emt 0:00:00]} 30. Kh2 {[%emt 0:00:00]} Ke7 {[%emt 0:00:00]} 31. Kg3 {
[%emt 0:00:00]} 1/2-1/2

[Event "Gibraltar Masters 18th"]
[Site "Gibraltar"]
[Date "2020.01.30"]
[Round "10.40"]
[White "Sukandar, Irine Kharisma"]
[Black "Kotronias, Vasilios"]
[Result "1/2-1/2"]
[ECO "B56"]
[WhiteElo "2402"]
[BlackElo "2526"]
[PlyCount "102"]
[EventDate "2020.01.21"]
[EventType "swiss"]
[EventRounds "10"]
[EventCountry "GGB"]
[SourceTitle "BritBase"]
[Source "John Saunders"]
[SourceDate "2021.06.05"]
[SourceVersion "1"]
[SourceVersionDate "2021.06.05"]
[SourceQuality "1"]
[TimeControl "40/100:0"]
[WhiteClock "0:09:19"]
[BlackClock "0:03:00"]

1. e4 {[%emt 0:00:00]} c5 {[%emt 0:00:00]} 2. Nf3 {[%emt 0:00:00]} d6 {[%emt 0:
00:00]} 3. d4 {[%emt 0:00:00]} cxd4 {[%emt 0:00:00]} 4. Nxd4 {[%emt 0:00:00]}
Nf6 {[%emt 0:00:00]} 5. Nc3 {[%emt 0:00:00]} Nc6 {[%emt 0:00:00]} 6. f3 {
[%emt 0:00:00]} e5 {[%emt 0:00:00]} 7. Nb3 {[%emt 0:00:00]} Be7 {[%emt 0:00:00]
} 8. Be3 {[%emt 0:00:00]} O-O {[%emt 0:00:00]} 9. Qd2 {[%emt 0:00:00]} Be6 {
[%emt 0:00:00]} 10. Rd1 {[%emt 0:00:00]} Na5 {[%emt 0:00:00]} 11. Nd5 {[%emt 0:
00:00]} Nxd5 {[%emt 0:00:00]} 12. exd5 {[%emt 0:00:00]} Nxb3 {[%emt 0:00:00]}
13. axb3 {[%emt 0:00:00]} Bd7 {[%emt 0:00:00]} 14. Bd3 {[%emt 0:00:00]} f5 {
[%emt 0:00:00]} 15. O-O {[%emt 0:00:00]} f4 {[%emt 0:00:00]} 16. Bf2 {[%emt 0:
00:00]} Bh4 {[%emt 0:00:00]} 17. Ra1 {[%emt 0:00:00]} Bxf2+ {[%emt 0:00:00]}
18. Qxf2 {[%emt 0:00:00]} a5 {[%emt 0:00:00]} 19. b4 {[%emt 0:00:00]} b6 {
[%emt 0:00:00]} 20. Ra3 {[%emt 0:00:00]} Rb8 {[%emt 0:00:00]} 21. Rfa1 {
[%emt 0:00:00]} axb4 {[%emt 0:00:00]} 22. Ra7 {[%emt 0:00:00]} Rf7 {[%emt 0:00:
00]} 23. b3 {[%emt 0:00:00]} Be8 {[%emt 0:00:00]} 24. Qe1 {[%emt 0:00:00]} Rxa7
{[%emt 0:00:00]} 25. Rxa7 {[%emt 0:00:00]} Ra8 {[%emt 0:00:00]} 26. Rxa8 {
[%emt 0:00:00]} Qxa8 {[%emt 0:00:00]} 27. Qxb4 {[%emt 0:00:00]} Qd8 {[%emt 0:
00:00]} 28. h3 {[%emt 0:00:00]} Qc7 {[%emt 0:00:00]} 29. Qa3 {[%emt 0:00:00]}
g6 {[%emt 0:00:00]} 30. Qa8 {[%emt 0:00:00]} Kf7 {[%emt 0:00:00]} 31. Kh2 {
[%emt 0:00:00]} Ke7 {[%emt 0:00:00]} 32. Ba6 {[%emt 0:00:00]} h6 {[%emt 0:00:
00]} 33. c4 {[%emt 0:00:00]} g5 {[%emt 0:00:00]} 34. Bb7 {[%emt 0:00:00]} Qd8 {
[%emt 0:00:00]} 35. Qa6 {[%emt 0:00:00]} Kf6 {[%emt 0:00:00]} 36. b4 {[%emt 0:
00:00]} h5 {[%emt 0:00:00]} 37. c5 {[%emt 0:00:00]} bxc5 {[%emt 0:00:00]} 38.
bxc5 {[%emt 0:00:00]} g4 {[%emt 0:00:00]} 39. hxg4 {[%emt 0:00:00]} hxg4 {
[%emt 0:00:00]} 40. fxg4 {[%emt 0:00:00]} Kg7 {[%emt 0:00:00]} 41. Qe2 {
[%emt 0:00:00]} Bf7 {[%emt 0:00:00]} 42. Bc6 {[%emt 0:00:00]} Qh4+ {[%emt 0:00:
00]} 43. Kg1 {[%emt 0:00:00]} Qe7 {[%emt 0:00:00]} 44. cxd6 {[%emt 0:00:00]}
Qxd6 {[%emt 0:00:00]} 45. Qc4 {[%emt 0:00:00]} Kf6 {[%emt 0:00:00]} 46. Ba8 {
[%emt 0:00:00]} Kg5 {[%emt 0:00:00]} 47. Qc6 {[%emt 0:00:00]} Qa3 {[%emt 0:00:
00]} 48. d6 {[%emt 0:00:00]} Qe3+ {[%emt 0:00:00]} 49. Kh1 {[%emt 0:00:00]}
Qe1+ {[%emt 0:00:00]} 50. Kh2 {[%emt 0:00:00]} Qg3+ {[%emt 0:00:00]} 51. Kg1 {
[%emt 0:00:00]} Qe1+ {[%emt 0:00:20]} 1/2-1/2

[Event "Gibraltar Masters 18th"]
[Site "Gibraltar"]
[Date "2020.01.30"]
[Round "10.41"]
[White "Wemmers, Xander"]
[Black "Hjartarson, Johann"]
[Result "0-1"]
[ECO "E20"]
[WhiteElo "2380"]
[BlackElo "2524"]
[PlyCount "86"]
[EventDate "2020.01.21"]
[EventType "swiss"]
[EventRounds "10"]
[EventCountry "GGB"]
[SourceTitle "BritBase"]
[Source "John Saunders"]
[SourceDate "2021.06.05"]
[SourceVersion "1"]
[SourceVersionDate "2021.06.05"]
[SourceQuality "1"]
[TimeControl "40/100:0"]
[WhiteClock "0:46:39"]
[BlackClock "0:50:51"]

1. d4 {[%emt 0:00:00]} Nf6 {[%emt 0:00:00]} 2. c4 {[%emt 0:00:00]} e6 {[%emt 0:
00:00]} 3. Nc3 {[%emt 0:00:00]} Bb4 {[%emt 0:00:00]} 4. f3 {[%emt 0:00:00]} d5
{[%emt 0:00:00]} 5. a3 {[%emt 0:00:00]} Be7 {[%emt 0:00:00]} 6. e4 {[%emt 0:00:
00]} dxe4 {[%emt 0:00:00]} 7. fxe4 {[%emt 0:00:00]} e5 {[%emt 0:00:00]} 8. d5 {
[%emt 0:00:00]} O-O {[%emt 0:00:00]} 9. Nf3 {[%emt 0:00:00]} Nbd7 {[%emt 0:00:
00]} 10. Bd3 {[%emt 0:00:00]} a5 {[%emt 0:00:00]} 11. O-O {[%emt 0:00:00]} c6 {
[%emt 0:00:00]} 12. Kh1 {[%emt 0:00:00]} Bc5 {[%emt 0:00:00]} 13. Bd2 {[%emt 0:
00:00]} Bd4 {[%emt 0:00:00]} 14. Qe1 {[%emt 0:00:00]} h6 {[%emt 0:00:00]} 15.
Nh4 {[%emt 0:00:00]} Nc5 {[%emt 0:00:00]} 16. Bc2 {[%emt 0:00:00]} cxd5 {
[%emt 0:00:00]} 17. cxd5 {[%emt 0:00:00]} Ra6 {[%emt 0:00:00]} 18. Nf5 {
[%emt 0:00:00]} Bxf5 {[%emt 0:00:00]} 19. Rxf5 {[%emt 0:00:00]} Ne8 {[%emt 0:
00:00]} 20. Nb5 {[%emt 0:00:00]} Bxb2 {[%emt 0:00:00]} 21. Rb1 {[%emt 0:00:00]}
Bd4 {[%emt 0:00:00]} 22. Nxd4 {[%emt 0:00:00]} exd4 {[%emt 0:00:00]} 23. Qf2 {
[%emt 0:00:00]} Nd6 {[%emt 0:00:00]} 24. Qxd4 {[%emt 0:00:00]} Nxf5 {[%emt 0:
00:00]} 25. Qxc5 {[%emt 0:00:00]} Nd6 {[%emt 0:00:00]} 26. Bd3 {[%emt 0:00:00]}
b5 {[%emt 0:00:00]} 27. e5 {[%emt 0:00:00]} Nc4 {[%emt 0:00:00]} 28. Bc3 {
[%emt 0:00:00]} Qg5 {[%emt 0:00:00]} 29. Qd4 {[%emt 0:00:00]} Nxa3 {[%emt 0:00:
00]} 30. Re1 {[%emt 0:00:00]} Nc4 {[%emt 0:00:00]} 31. Qe4 {[%emt 0:00:00]} Rg6
{[%emt 0:00:00]} 32. g3 {[%emt 0:00:00]} Qg4 {[%emt 0:00:00]} 33. e6 {[%emt 0:
00:57]} Qxe4+ {[%emt 0:00:00]} 34. Rxe4 {[%emt 0:00:00]} Nd6 {[%emt 0:00:00]}
35. Re2 {[%emt 0:00:09]} Rg5 {[%emt 0:00:00]} 36. Be5 {[%emt 0:00:00]} Rxe5 37.
Rxe5 {[%emt 0:00:00]} a4 {[%emt 0:00:00]} 38. Re1 {[%emt 0:00:00]} b4 {[%emt 0:
00:07]} 39. Ra1 {[%emt 0:00:00]} a3 {[%emt 0:00:00]} 40. Bc2 {[%emt 0:00:00]}
Rc8 {[%emt 0:00:00]} 41. Ba4 {[%emt 0:00:00]} fxe6 {[%emt 0:00:00]} 42. dxe6 {
[%emt 0:00:00]} Kf8 {[%emt 0:00:00]} 43. Rb1 {[%emt 0:00:00]} Ke7 {[%emt 0:00:
00]} 0-1

[Event "Gibraltar Masters 18th"]
[Site "Gibraltar"]
[Date "2020.01.30"]
[Round "10.42"]
[White "Kozak, Adam"]
[Black "Murzin, Volodar"]
[Result "1/2-1/2"]
[ECO "A07"]
[WhiteElo "2523"]
[BlackElo "2442"]
[PlyCount "72"]
[EventDate "2020.01.21"]
[EventType "swiss"]
[EventRounds "10"]
[EventCountry "GGB"]
[SourceTitle "BritBase"]
[Source "John Saunders"]
[SourceDate "2021.06.05"]
[SourceVersion "1"]
[SourceVersionDate "2021.06.05"]
[SourceQuality "1"]
[TimeControl "40/100:0"]
[WhiteClock "0:06:34"]
[BlackClock "0:13:00"]

1. Nf3 {[%emt 0:00:00]} d5 {[%emt 0:00:00]} 2. g3 {[%emt 0:00:00]} Bg4 {
[%emt 0:00:00]} 3. Bg2 {[%emt 0:00:00]} c6 {[%emt 0:00:00]} 4. O-O {[%emt 0:00:
00]} Nd7 {[%emt 0:00:00]} 5. h3 {[%emt 0:00:00]} Bh5 {[%emt 0:00:00]} 6. d4 {
[%emt 0:00:00]} e6 {[%emt 0:00:00]} 7. c4 {[%emt 0:00:00]} Be7 {[%emt 0:00:00]}
8. Nc3 {[%emt 0:00:00]} dxc4 {[%emt 0:00:00]} 9. a4 {[%emt 0:00:00]} a5 {
[%emt 0:00:00]} 10. e4 {[%emt 0:00:00]} Ngf6 {[%emt 0:00:00]} 11. Qe2 {[%emt 0:
00:00]} Bxf3 {[%emt 0:00:00]} 12. Bxf3 {[%emt 0:00:00]} Nb6 {[%emt 0:00:00]}
13. Be3 {[%emt 0:00:00]} O-O {[%emt 0:00:00]} 14. Bg2 {[%emt 0:00:00]} Bb4 {
[%emt 0:00:00]} 15. Rfd1 {[%emt 0:00:00]} Qe7 {[%emt 0:00:00]} 16. Qc2 {
[%emt 0:00:00]} Nfd7 {[%emt 0:00:00]} 17. Na2 {[%emt 0:00:00]} Bd6 {[%emt 0:00:
00]} 18. Nc3 {[%emt 0:00:00]} e5 {[%emt 0:00:00]} 19. dxe5 {[%emt 0:00:00]} Bc5
{[%emt 0:00:00]} 20. Bxc5 {[%emt 0:00:00]} Qxc5 {[%emt 0:00:00]} 21. Kh2 {
[%emt 0:00:00]} Nxe5 {[%emt 0:00:00]} 22. f4 {[%emt 0:00:00]} Nd3 {[%emt 0:00:
00]} 23. e5 {[%emt 0:00:00]} Rad8 {[%emt 0:00:00]} 24. Ne4 {[%emt 0:00:00]} Qd4
{[%emt 0:00:00]} 25. b3 {[%emt 0:00:00]} Nd5 {[%emt 0:00:00]} 26. Qxc4 {
[%emt 0:00:00]} Ne3 {[%emt 0:00:00]} 27. Qxd4 {[%emt 0:00:00]} Rxd4 {[%emt 0:
00:00]} 28. Rd2 {[%emt 0:00:00]} Nxg2 {[%emt 0:00:00]} 29. Kxg2 {[%emt 0:00:00]
} f5 {[%emt 0:00:00]} 30. exf6 {[%emt 0:00:00]} Nxf4+ {[%emt 0:00:00]} 31. Kf3
{[%emt 0:00:00]} Rxd2 {[%emt 0:00:00]} 32. Nxd2 {[%emt 0:00:00]} Nd5 {[%emt 0:
00:00]} 33. Nc4 {[%emt 0:00:00]} Rxf6+ {[%emt 0:00:00]} 34. Kg2 {[%emt 0:00:00]
} b6 {[%emt 0:00:00]} 35. Re1 {[%emt 0:00:00]} Kf8 {[%emt 0:00:00]} 36. Re2 {
[%emt 0:00:00]} g6 {[%emt 0:00:00]} 1/2-1/2

[Event "Gibraltar Masters 18th"]
[Site "Gibraltar"]
[Date "2020.01.30"]
[Round "10.43"]
[White "Krysa, Leandro"]
[Black "Sardana, Rishi"]
[Result "1/2-1/2"]
[ECO "E14"]
[WhiteElo "2522"]
[BlackElo "2437"]
[PlyCount "124"]
[EventDate "2020.01.21"]
[EventType "swiss"]
[EventRounds "10"]
[EventCountry "GGB"]
[SourceTitle "BritBase"]
[Source "John Saunders"]
[SourceDate "2021.06.05"]
[SourceVersion "1"]
[SourceVersionDate "2021.06.05"]
[SourceQuality "1"]
[TimeControl "40/100:0"]
[WhiteClock "0:01:56"]
[BlackClock "0:01:18"]

1. Nf3 {[%emt 0:00:00]} d5 {[%emt 0:00:00]} 2. e3 {[%emt 0:00:00]} Nf6 {
[%emt 0:00:00]} 3. c4 {[%emt 0:00:00]} e6 {[%emt 0:00:00]} 4. Nc3 {[%emt 0:00:
00]} b6 {[%emt 0:00:00]} 5. b3 {[%emt 0:00:00]} Bb7 {[%emt 0:00:00]} 6. Bb2 {
[%emt 0:00:00]} a6 {[%emt 0:00:00]} 7. d4 {[%emt 0:00:00]} Nbd7 {[%emt 0:00:00]
} 8. Bd3 {[%emt 0:00:00]} Bd6 {[%emt 0:00:00]} 9. O-O {[%emt 0:00:00]} O-O {
[%emt 0:00:00]} 10. a4 {[%emt 0:00:00]} c5 {[%emt 0:00:00]} 11. cxd5 {[%emt 0:
00:00]} exd5 {[%emt 0:00:00]} 12. Rc1 {[%emt 0:00:00]} Re8 {[%emt 0:00:00]} 13.
Re1 {[%emt 0:00:00]} Ne4 {[%emt 0:00:00]} 14. dxc5 {[%emt 0:00:00]} Nxc3 {
[%emt 0:00:00]} 15. Bxc3 {[%emt 0:00:00]} bxc5 {[%emt 0:00:00]} 16. h3 {
[%emt 0:00:00]} Nf6 {[%emt 0:00:00]} 17. Nh4 {[%emt 0:00:00]} Ne4 {[%emt 0:00:
00]} 18. Bxe4 {[%emt 0:00:00]} Rxe4 {[%emt 0:00:00]} 19. Nf5 {[%emt 0:00:00]}
Bf8 {[%emt 0:00:00]} 20. Ng3 {[%emt 0:00:00]} Re6 {[%emt 0:00:00]} 21. Bb2 {
[%emt 0:00:00]} Rg6 {[%emt 0:00:00]} 22. Be5 {[%emt 0:00:00]} Qd7 {[%emt 0:00:
00]} 23. Qd3 {[%emt 0:00:00]} Re8 {[%emt 0:00:00]} 24. Bf4 {[%emt 0:00:00]} Qc6
{[%emt 0:00:00]} 25. Rc2 {[%emt 0:00:00]} a5 {[%emt 0:00:00]} 26. Rec1 {
[%emt 0:00:00]} h6 {[%emt 0:00:00]} 27. Qb5 {[%emt 0:00:00]} Qxb5 {[%emt 0:00:
00]} 28. axb5 {[%emt 0:00:00]} Rb6 {[%emt 0:00:00]} 29. Rxc5 {[%emt 0:00:00]}
Bxc5 {[%emt 0:00:00]} 30. Rxc5 {[%emt 0:00:00]} Rc8 {[%emt 0:00:00]} 31. Bc7 {
[%emt 0:00:00]} Rxc7 {[%emt 0:00:00]} 32. Rxc7 {[%emt 0:00:00]} Rxb5 {[%emt 0:
00:00]} 33. Rc3 {[%emt 0:00:00]} d4 {[%emt 0:00:00]} 34. exd4 {[%emt 0:00:00]}
Bd5 {[%emt 0:00:00]} 35. Nf5 {[%emt 0:00:00]} Bxb3 {[%emt 0:00:00]} 36. Rc8+ {
[%emt 0:00:00]} Kh7 {[%emt 0:00:00]} 37. Ne3 {[%emt 0:00:00]} a4 {[%emt 0:00:
00]} 38. Ra8 {[%emt 0:00:00]} Rb4 {[%emt 0:00:00]} 39. d5 {[%emt 0:00:00]} Rd4
{[%emt 0:00:00]} 40. g4 {[%emt 0:00:00]} g6 {[%emt 0:00:00]} 41. Ra6 {[%emt 0:
00:00]} Kg7 {[%emt 0:00:00]} 42. Kg2 {[%emt 0:00:39]} Kf8 {[%emt 0:00:00]} 43.
Kg3 {[%emt 0:00:00]} Ke7 {[%emt 0:00:00]} 44. h4 {[%emt 0:00:00]} Kd7 {[%emt 0:
00:00]} 45. h5 {[%emt 0:00:00]} gxh5 {[%emt 0:00:00]} 46. gxh5 {[%emt 0:00:00]}
f6 {[%emt 0:00:00]} 47. Ng4 {[%emt 0:00:00]} f5 {[%emt 0:00:00]} 48. Nxh6 {
[%emt 0:00:00]} Rxd5 {[%emt 0:00:00]} 49. Kf4 {[%emt 0:00:00]} Kc7 {[%emt 0:00:
00]} 50. Nxf5 {[%emt 0:00:00]} Kb7 {[%emt 0:00:00]} 51. Rg6 {[%emt 0:00:00]} a3
{[%emt 0:00:00]} 52. Rg3 {[%emt 0:00:00]} Bc2 {[%emt 0:00:00]} 53. Rxa3 {
[%emt 0:00:00]} Rxf5+ {[%emt 0:00:00]} 54. Kg4 {[%emt 0:00:00]} Rxf2 {[%emt 0:
00:00]} 55. h6 {[%emt 0:00:00]} Kc6 {[%emt 0:00:00]} 56. Kg5 {[%emt 0:00:00]}
Rg2+ {[%emt 0:00:00]} 57. Kf4 {[%emt 0:00:00]} Bb1 {[%emt 0:01:30]} 58. Ra1 {
[%emt 0:00:00]} Bh7 {[%emt 0:00:01]} 59. Ra7 {[%emt 0:00:00]} Bd3 {[%emt 0:00:
00]} 60. Ra3 {[%emt 0:00:00]} Bb1 {[%emt 0:00:03]} 61. Ra1 {[%emt 0:00:25]} Bh7
{[%emt 0:00:32]} 62. Ra7 {[%emt 0:00:20]} Bd3 {[%emt 0:00:00]} 1/2-1/2

[Event "Gibraltar Masters 18th"]
[Site "Gibraltar"]
[Date "2020.01.30"]
[Round "10.44"]
[White "Mieles Palau, Daniel"]
[Black "Flom, Gabriel"]
[Result "0-1"]
[ECO "D13"]
[WhiteElo "2374"]
[BlackElo "2510"]
[PlyCount "76"]
[EventDate "2020.01.21"]
[EventType "swiss"]
[EventRounds "10"]
[EventCountry "GGB"]
[SourceTitle "BritBase"]
[Source "John Saunders"]
[SourceDate "2021.06.05"]
[SourceVersion "1"]
[SourceVersionDate "2021.06.05"]
[SourceQuality "1"]
[TimeControl "40/100:0"]
[WhiteClock "0:05:26"]
[BlackClock "0:26:16"]

1. c4 {[%emt 0:00:00]} Nf6 {[%emt 0:00:00]} 2. g3 {[%emt 0:00:00]} c6 {[%emt 0:
00:00]} 3. Bg2 {[%emt 0:00:00]} d5 {[%emt 0:00:00]} 4. cxd5 {[%emt 0:00:00]}
cxd5 {[%emt 0:00:00]} 5. Nf3 {[%emt 0:00:00]} Nc6 {[%emt 0:00:00]} 6. d4 {
[%emt 0:00:00]} Bf5 {[%emt 0:00:00]} 7. O-O {[%emt 0:00:00]} e6 {[%emt 0:00:00]
} 8. Nc3 {[%emt 0:00:00]} h6 {[%emt 0:00:00]} 9. b3 {[%emt 0:00:00]} Bb4 {
[%emt 0:00:00]} 10. Bb2 {[%emt 0:00:00]} O-O {[%emt 0:00:00]} 11. Na4 {[%emt 0:
00:00]} Rc8 {[%emt 0:00:00]} 12. Rc1 {[%emt 0:00:00]} b6 {[%emt 0:00:00]} 13.
a3 {[%emt 0:00:00]} Be7 {[%emt 0:00:00]} 14. b4 {[%emt 0:00:00]} Rc7 {[%emt 0:
00:00]} 15. Ne5 {[%emt 0:00:00]} Qc8 {[%emt 0:00:00]} 16. Nc3 {[%emt 0:00:00]}
Qb7 {[%emt 0:00:00]} 17. Qd2 {[%emt 0:00:00]} a6 {[%emt 0:00:00]} 18. h3 {
[%emt 0:00:00]} Rfc8 {[%emt 0:00:00]} 19. Kh2 {[%emt 0:00:00]} b5 {[%emt 0:00:
00]} 20. e3 {[%emt 0:00:00]} Nxe5 {[%emt 0:00:00]} 21. dxe5 {[%emt 0:00:00]}
Nd7 {[%emt 0:00:00]} 22. Qe2 {[%emt 0:00:00]} Nxe5 {[%emt 0:00:00]} 23. e4 {
[%emt 0:00:00]} dxe4 {[%emt 0:00:00]} 24. Nxe4 {[%emt 0:00:00]} Rxc1 {[%emt 0:
00:00]} 25. Rxc1 {[%emt 0:00:00]} Rxc1 {[%emt 0:00:00]} 26. Bxc1 {[%emt 0:00:
00]} Qc7 {[%emt 0:00:00]} 27. Bf4 {[%emt 0:00:00]} Qc4 {[%emt 0:00:00]} 28. Qe3
{[%emt 0:00:00]} Nd3 {[%emt 0:00:00]} 29. Nd6 {[%emt 0:00:00]} Bxd6 {[%emt 0:
00:00]} 30. Bxd6 {[%emt 0:00:00]} Qc2 {[%emt 0:00:00]} 31. g4 {[%emt 0:00:00]}
Bg6 {[%emt 0:00:00]} 32. Bg3 {[%emt 0:00:00]} Nb2 {[%emt 0:00:00]} 33. h4 {
[%emt 0:00:00]} Nc4 {[%emt 0:00:00]} 34. Qa7 {[%emt 0:00:00]} Be4 {[%emt 0:00:
00]} 35. Bxe4 {[%emt 0:00:00]} Qxe4 {[%emt 0:00:00]} 36. Qxa6 {[%emt 0:00:00]}
Nd2 {[%emt 0:00:00]} 37. Qxb5 {[%emt 0:00:00]} Kh7 {[%emt 0:00:00]} 38. Qd7 {
[%emt 0:00:00]} Nf3+ {[%emt 0:00:00]} 0-1